bitfinex/quotes_BTCUSD_20251201
["timestamp","ask_amount","ask_price","bid_price","bid_amount"]
[1764570579359,0.59414673,86199.0,86198.0,0.00437373]
[1764570586769,0.58006673,86199.0,86198.0,0.00437373]
[1764570589145,0.60039673,86199.0,86198.0,0.06895373]
[1764570589439,0.58006673,86199.0,86198.0,0.06895373]
[1764570591223,0.15020733,86200.0,86198.0,0.06895373]
[1764570591411,0.15020733,86200.0,86199.0,0.06458]
[1764570592550,0.15020733,86200.0,86199.0,0.06858]
[1764570593900,0.15020733,86200.0,86199.0,0.06458]
[1764570594255,0.15020733,86200.0,86199.0,0.07258]
[1764570595717,0.03161687,86203.0,86202.0,0.23201317]
[1764570595914,0.03161687,86203.0,86202.0,0.25718317]
[1764570596211,0.01159689,86230.0,86225.0,0.01159756]
[1764570596417,0.54646911,86233.0,86226.0,0.01839]
[1764570596418,2.0,86227.0,86226.0,0.01839]
[1764570596635,0.2435206,86235.0,86229.0,0.01159702]
[1764570596794,2.0,86231.0,86227.0,0.05100729]
[1764570597212,2.0,86231.0,86230.0,0.02517]
[1764570597736,2.0,86231.0,86230.0,0.06458]
[1764570598189,0.24353121,86232.0,86230.0,0.06458]
[1764570598374,0.24353121,86232.0,86231.0,0.06458]
[1764570599650,0.323,86231.0,86230.0,0.003]
[1764570600124,0.323,86231.0,86226.0,0.01839]
[1764570600125,0.23194322,86228.0,86226.0,0.01839]
[1764570600368,0.23194322,86228.0,86227.0,0.03941]
[1764570600487,0.23194322,86228.0,86227.0,0.06458]
[1764570601156,0.23194322,86228.0,86227.0,0.02517]
[1764570601565,0.323,86227.0,86226.0,0.001]
[1764570601762,0.323,86227.0,86223.0,0.0185]
[1764570601763,0.24354603,86226.0,86223.0,0.0185]
[1764570602908,0.23195398,86224.0,86223.0,0.0185]
[1764570603882,0.23198357,86213.0,86211.0,0.0185]
[1764570604929,0.0115989,86215.0,86212.0,0.06458]
[1764570605268,0.23198626,86212.0,86211.0,0.0185]
[1764570605455,0.01159985,86208.0,86206.0,0.0185]
[1764570605661,0.24359688,86208.0,86206.0,0.0185]
[1764570606832,0.24359688,86208.0,86198.0,0.00025565]
[1764570606833,0.24361688,86201.0,86198.0,0.00025565]
[1764570607229,0.23201856,86200.0,86199.0,0.03941]
[1764570607692,0.23201856,86200.0,86199.0,0.06458]
[1764570608122,0.24361688,86201.0,86199.0,0.06458]
[1764570608331,0.24361688,86201.0,86200.0,0.06458]
[1764570608686,0.01160079,86201.0,86200.0,0.08308]
[1764570608884,0.24361665,86201.0,86200.0,0.08308]
[1764570609298,0.24361665,86201.0,86200.0,0.04367]
[1764570610393,0.24361665,86201.0,86200.0,0.08308]
[1764570612361,0.24361203,86203.0,86200.0,0.08308]
[1764570612511,0.23200241,86206.0,86202.0,0.02517]
[1764570612512,0.01160025,86205.0,86202.0,0.02517]
[1764570612677,0.01160038,86204.0,86201.0,0.05101079]
[1764570613119,0.01160038,86204.0,86203.0,0.02517]
[1764570613320,0.06091306,86205.0,86203.0,0.02517]
[1764570613520,0.01159998,86207.0,86204.0,0.06458]
[1764570613703,0.01159998,86207.0,86206.0,0.02517]
[1764570613899,0.01159971,86209.0,86206.0,0.02517]
[1764570614098,0.01159971,86209.0,86207.0,0.06458]
[1764570614708,0.24359409,86209.0,86207.0,0.1023594]
[1764570616443,0.01159931,86212.0,86208.0,0.01159985]
[1764570616650,0.01159944,86211.0,86208.0,0.03941]
[1764570616926,0.23199433,86209.0,86208.0,0.03941]
[1764570617129,0.01159944,86211.0,86208.0,0.03941]
[1764570617304,0.01159944,86211.0,86210.0,0.04941]
[1764570617694,0.01259944,86211.0,86210.0,0.08935]
[1764570618865,0.01159944,86211.0,86210.0,0.08935]
[1764570619065,0.01159917,86213.0,86210.0,0.08935]
[1764570619319,0.01159917,86213.0,86212.0,0.02817]
[1764570619677,0.01159917,86213.0,86212.0,0.06811]
[1764570620443,0.01359917,86213.0,86212.0,0.06811]
[1764570620660,0.01159917,86213.0,86212.0,0.06811]
[1764570621022,0.01359917,86213.0,86212.0,0.06811]
[1764570624170,0.24558274,86213.0,86212.0,0.06811]
[1764570624974,0.01359917,86213.0,86212.0,0.06811]
[1764570625150,0.002,86213.0,86212.0,0.06811]
[1764570626752,0.24355496,86223.0,86218.0,0.0115985]
[1764570626952,0.24355496,86223.0,86221.0,0.04926]
[1764570627089,0.24355496,86223.0,86222.0,0.02907]
[1764570627292,0.24355496,86223.0,86222.0,0.07129]
[1764570627496,0.2435501,86225.0,86222.0,0.07129]
[1764570627497,0.01159756,86225.0,86222.0,0.07129]
[1764570627750,0.01159756,86225.0,86224.0,0.02907]
[1764570627751,0.24355071,86225.0,86224.0,0.02907]
[1764570627958,0.01159716,86228.0,86224.0,0.02907]
[1764570628130,0.01159716,86228.0,86227.0,0.04926]
[1764570628583,0.323,86233.0,86230.0,0.24353439]
[1764570628772,0.323,86233.0,86231.0,0.2319328]
[1764570629024,0.323,86233.0,86232.0,0.02907]
[1764570629229,0.323,86233.0,86232.0,0.07129]
[1764570629422,0.323,86233.0,86232.0,0.02907]
[1764570630050,0.326,86233.0,86232.0,0.02907]
[1764570630664,0.01159689,86230.0,86227.0,0.06241]
[1764570630871,0.23194053,86229.0,86227.0,0.06241]
[1764570631077,0.23194053,86229.0,86228.0,0.04222]
[1764570631279,0.23194053,86229.0,86228.0,0.07129]
[1764570631524,0.23194053,86229.0,86228.0,0.02907]
[1764570631833,0.23194053,86229.0,86227.0,0.02019]
[1764570631974,0.23194053,86229.0,86228.0,0.02907]
[1764570632188,0.23394053,86229.0,86228.0,0.07129]
[1764570632399,0.23394053,86229.0,86227.0,0.02019]
[1764570633458,0.23194053,86229.0,86227.0,0.02019]
[1764570633825,0.23394053,86229.0,86227.0,0.02019]
[1764570635658,0.23195667,86223.0,86217.0,0.02019]
[1764570635855,0.23197012,86218.0,86217.0,0.02019]
[1764570637261,0.23198357,86213.0,86212.0,0.02751]
[1764570637466,0.22829563,86213.0,86212.0,0.02751]
[1764570638257,0.22829563,86213.0,86212.0,0.02019]
[1764570638521,0.23199433,86209.0,86208.0,0.00011808]
[1764570640072,0.23199433,86209.0,86208.0,0.00111808]
[1764570643894,0.23199433,86209.0,86208.0,0.07240808]
[1764570647524,0.23199433,86209.0,86208.0,0.03018808]
[1764570648722,0.05078163,86209.0,86208.0,0.03018808]
[1764570650260,0.05078163,86209.0,86208.0,0.07330808]
[1764570653274,0.05078163,86209.0,86208.0,0.00111808]
[1764570655417,0.07218163,86209.0,86208.0,0.00111808]
[1764570656287,0.09358163,86209.0,86208.0,0.00111808]
[1764570656467,0.09358163,86209.0,86208.0,0.00011808]
[1764570657187,0.09558163,86209.0,86208.0,0.00011808]
[1764570657568,0.47910462,86209.0,86208.0,0.00011808]
[1764570657772,2.48210462,86209.0,86208.0,0.00011808]
[1764570657972,2.50229462,86209.0,86208.0,0.00011808]
[1764570658545,2.49929462,86209.0,86208.0,0.00011808]
[1764570658760,2.53059081,86209.0,86208.0,0.00011808]
[1764570658978,2.61299753,86209.0,86208.0,0.00011808]
[1764570659595,2.50029462,86209.0,86208.0,0.00011808]
[1764570659888,2.50529462,86209.0,86208.0,0.00011808]
[1764570660110,2.53657327,86209.0,86208.0,0.00011808]
[1764570660313,2.51261462,86209.0,86208.0,0.00011808]
[1764570660921,2.50529462,86209.0,86208.0,0.00011808]
[1764570661148,2.51261462,86209.0,86208.0,0.00011808]
[1764570662336,2.54389154,86209.0,86208.0,0.00011808]
[1764570662874,2.58939537,86209.0,86208.0,0.00011808]
[1764570663590,2.55811845,86209.0,86208.0,0.00011808]
[1764570663800,2.61754424,86199.0,86171.0,0.02118]
[1764570663990,2.61754424,86199.0,86171.0,0.01583565]
[1764570663991,0.24369345,86174.0,86171.0,0.01583565]
[1764570664191,0.01160442,86174.0,86172.0,0.04312]
[1764570664392,0.24369544,86174.0,86172.0,0.04312]
[1764570664614,0.24369544,86174.0,86173.0,0.02973]
[1764570664818,0.23209102,86174.0,86173.0,0.02973]
[1764570665026,0.23209102,86174.0,86173.0,0.07285]
[1764570665398,0.03116706,86176.0,86174.0,0.23208856]
[1764570665604,0.03116706,86176.0,86175.0,0.02973]
[1764570665820,0.03116706,86176.0,86175.0,0.07285]
[1764570667113,0.03116706,86176.0,86175.0,0.07685]
[1764570667510,0.03116706,86176.0,86175.0,0.10005858]
[1764570667737,0.03116706,86176.0,86175.0,0.12965103]
[1764570668100,0.03116706,86176.0,86175.0,0.10005858]
[1764570670106,0.03116706,86176.0,86175.0,0.07685]
[1764570670511,0.03116706,86176.0,86175.0,0.0775852]
[1764570673964,0.03116706,86176.0,86175.0,0.10079378]
[1764570674470,0.03116706,86176.0,86175.0,0.19979042]
[1764570674666,0.03127989,86214.0,86175.0,0.19979042]
[1764570674667,0.23198661,86212.0,86204.0,0.23200736]
[1764570674820,0.01159958,86210.0,86206.0,0.01160012]
[1764570675024,0.0310288,86218.0,86210.0,0.01159958]
[1764570675227,0.0310288,86218.0,86217.0,0.02973]
[1764570675818,0.0310288,86218.0,86217.0,0.07285]
[1764570676420,0.0310288,86218.0,86217.0,0.07485]
[1764570676698,0.0310288,86218.0,86217.0,0.002]
[1764570677258,0.3808688,86218.0,86217.0,0.002]
[1764570677686,2.5644547,86218.0,86217.0,0.002]
[1764570677861,2.5912947,86218.0,86217.0,0.002]
[1764570678365,0.33459998,86207.0,86204.0,0.0202]
[1764570678699,0.323,86205.0,86204.0,0.0202]
[1764570678909,0.323,86205.0,86195.0,0.04228]
[1764570678910,0.23202125,86199.0,86195.0,0.04228]
[1764570679139,0.55502125,86199.0,86195.0,0.04228]
[1764570679415,0.2320374,86193.0,86192.0,0.02195]
[1764570680975,0.2320374,86193.0,86192.0,0.04955]
[1764570681440,0.2320374,86193.0,86190.0,0.00025568]
[1764570681441,0.23204278,86191.0,86190.0,0.00025568]
[1764570682399,0.62697458,86191.0,86190.0,0.00025568]
[1764570683258,0.62797458,86191.0,86190.0,0.00025568]
[1764570683483,0.55604278,86191.0,86190.0,0.00025568]
[1764570683677,0.001,86191.0,86190.0,0.00025568]
[1764570683836,0.23304278,86191.0,86190.0,0.00025568]
[1764570684043,0.23304278,86191.0,86190.0,0.00037378]
[1764570687230,0.001,86191.0,86190.0,0.03177378]
[1764570687437,0.001,86191.0,86190.0,0.07788378]
[1764570688700,0.23304278,86191.0,86190.0,0.00037378]
[1764570691876,0.001,86191.0,86190.0,0.07788378]
[1764570695734,0.001,86191.0,86190.0,0.03177378]
[1764570697534,0.001,86191.0,86190.0,0.00037378]
[1764570697971,0.324,86191.0,86190.0,0.00037378]
[1764570707294,0.324,86191.0,86190.0,0.03027378]
[1764570707545,0.324,86191.0,86190.0,0.07383378]
[1764570710031,0.324,86191.0,86190.0,0.03027378]
[1764570710239,0.324,86191.0,86190.0,0.00037378]
[1764570711478,0.35226,86191.0,86190.0,0.00037378]
[1764570711711,2.44304299,86191.0,86190.0,0.00037378]
[1764570712103,2.46499299,86191.0,86190.0,0.00037378]
[1764570712915,2.52760601,86191.0,86190.0,0.00037378]
[1764570713135,2.46499299,86191.0,86190.0,0.00037378]
[1764570713696,2.46399299,86191.0,86190.0,0.00037378]
[1764570713900,2.5796959,86191.0,86190.0,0.00037378]
[1764570714300,2.5776959,86191.0,86190.0,0.00037378]
[1764570714502,2.5826959,86191.0,86190.0,0.00037378]
[1764570714701,2.57654663,86191.0,86190.0,0.00037378]
[1764570714913,2.46284372,86191.0,86190.0,0.00037378]
[1764570715109,2.51296971,86191.0,86190.0,0.00037378]
[1764570715449,2.47120372,86191.0,86190.0,0.00037378]
[1764570717554,2.51296971,86191.0,86190.0,0.00037378]
[1764570718522,2.47120372,86191.0,86190.0,0.00037378]
[1764570718720,2.58490663,86191.0,86190.0,0.00037378]
[1764570721141,0.23209664,86171.0,86170.0,0.0004]
[1764570721476,0.23209664,86171.0,86170.0,0.00079336]
[1764570721477,2.66423963,86171.0,86170.0,0.00079336]
[1764570721635,2.66423963,86171.0,86160.0,0.001544]
[1764570721636,0.61764657,86161.0,86160.0,0.001544]
[1764570721790,2.65286981,86161.0,86160.0,0.001544]
[1764570721995,2.68033981,86161.0,86160.0,0.001544]
[1764570722228,2.65286981,86161.0,86160.0,0.001544]
[1764570722738,2.68033981,86161.0,86160.0,0.001544]
[1764570722962,2.70126981,86161.0,86160.0,0.001544]
[1764570723360,2.66643981,86161.0,86160.0,0.001544]
[1764570723576,2.64632981,86161.0,86160.0,0.001544]
[1764570723773,2.65132981,86161.0,86160.0,0.001544]
[1764570724120,2.67779981,86161.0,86160.0,0.001544]
[1764570724525,2.70126981,86161.0,86160.0,0.001544]
[1764570724774,2.67379981,86161.0,86160.0,0.002544]
[1764570726054,2.78750272,86161.0,86160.0,0.002544]
[1764570726464,2.67379981,86161.0,86160.0,0.001544]
[1764570727257,2.70126981,86161.0,86160.0,0.001544]
[1764570727612,2.70126981,86161.0,86160.0,0.00250317]
[1764570729192,0.70126981,86161.0,86160.0,0.00250317]
[1764570729345,2.70126981,86161.0,86160.0,0.00250317]
[1764570729538,2.81497272,86161.0,86160.0,0.00250317]
[1764570729812,2.81997272,86161.0,86160.0,0.00250317]
[1764570729955,2.81497272,86161.0,86160.0,0.00250317]
[1764570730157,2.81597272,86161.0,86160.0,0.00250317]
[1764570730353,2.82297272,86161.0,86160.0,0.00250317]
[1764570730579,2.82197272,86161.0,86160.0,0.00250317]
[1764570730957,2.66130191,86161.0,86160.0,0.00250317]
[1764570731168,2.29627682,86161.0,86160.0,0.00250317]
[1764570731369,2.68179981,86161.0,86160.0,0.00250317]
[1764570731564,2.0,86144.0,86142.0,0.04346317]
[1764570731967,2.323,86144.0,86143.0,0.03044373]
[1764570733599,2.323,86144.0,86143.0,0.07400373]
[1764570733996,2.323,86144.0,86143.0,0.07700373]
[1764570735004,0.323,86144.0,86143.0,0.07700373]
[1764570743199,0.0321227,86145.0,86143.0,0.30917581]
[1764570743411,0.0321227,86145.0,86144.0,0.06814]
[1764570743581,0.0321227,86145.0,86144.0,0.06865174]
[1764570745019,0.0321227,86145.0,86144.0,0.09186867]
[1764570745396,0.0321227,86145.0,86144.0,0.06865174]
[1764570745832,0.0321227,86145.0,86144.0,0.07565174]
[1764570746244,0.0321227,86145.0,86144.0,0.09886867]
[1764570747119,0.24369771,86173.0,86144.0,0.09886867]
[1764570747120,0.01160429,86175.0,86158.0,0.01160658]
[1764570747318,0.33460429,86175.0,86160.0,0.04675]
[1764570747519,0.323,86175.0,86160.0,0.04675]
[1764570747724,0.323,86175.0,86160.0,0.08875]
[1764570747725,0.01160469,86172.0,86160.0,0.08875]
[1764570748517,0.2437017,86171.0,86160.0,0.08875]
[1764570748720,0.24372252,86164.0,86160.0,0.08875]
[1764570748994,0.0116059,86163.0,86160.0,0.08875]
[1764570749146,0.0116059,86163.0,86160.0,0.09275]
[1764570750607,0.23251682,86161.0,86160.0,0.05075]
[1764570750812,0.00039324,86161.0,86160.0,0.05075]
[1764570750972,0.00039324,86161.0,86160.0,0.09275]
[1764570754664,0.00039324,86161.0,86160.0,0.10011]
[1764570754851,0.00039324,86161.0,86160.0,0.12332262]
[1764570755346,0.00039324,86161.0,86160.0,0.11932262]
[1764570755743,0.00039324,86161.0,86160.0,0.12332262]
[1764570756056,0.00039324,86161.0,86160.0,0.11932262]
[1764570756472,0.00039324,86161.0,86160.0,0.12532262]
[1764570757687,0.00039324,86161.0,86160.0,0.11932262]
[1764570757905,0.00039324,86161.0,86160.0,0.12632262]
[1764570758192,0.00039324,86161.0,86160.0,0.09611]
[1764570758592,0.00039324,86161.0,86160.0,0.10011]
[1764570759742,0.00039324,86161.0,86160.0,0.12332262]
[1764570763150,0.00039324,86161.0,86160.0,0.44632262]
[1764570763287,0.24362339,86199.0,86191.0,0.24364235]
[1764570763483,0.01160065,86202.0,86191.0,0.24364235]
[1764570763484,0.323,86200.0,86194.0,0.04349]
[1764570763683,0.01160038,86204.0,86194.0,0.04349]
[1764570763954,0.01160038,86204.0,86194.0,0.08549]
[1764570764118,0.323,86209.0,86194.0,0.08549]
[1764570764321,0.01159998,86207.0,86194.0,0.08549]
[1764570764482,0.01160025,86205.0,86194.0,0.08549]
[1764570764689,0.01160052,86203.0,86194.0,0.09285]
[1764570765141,0.01160052,86203.0,86194.0,0.08549]
[1764570765142,0.01160133,86197.0,86194.0,0.08549]
[1764570765370,0.2320315,86196.0,86194.0,0.08549]
[1764570766650,0.24362815,86197.0,86194.0,0.08549]
[1764570766981,0.01160133,86197.0,86194.0,0.08549]
[1764570767391,0.01160119,86198.0,86194.0,0.08549]
[1764570767592,0.01160106,86199.0,86194.0,0.08549]
[1764570767812,0.33460012,86206.0,86194.0,0.08549]
[1764570768129,0.02005,86225.0,86194.0,0.08549]
[1764570768130,0.47,86210.0,86194.0,0.08549]
[1764570770364,0.47,86210.0,86194.0,0.08649]
[1764570770816,0.47,86210.0,86194.0,0.09049]
[1764570771121,0.47,86210.0,86194.0,0.11369347]
[1764570773227,0.47,86210.0,86209.0,0.23199433]
[1764570773435,0.47,86210.0,86209.0,0.25869433]
[1764570773764,0.47,86210.0,86209.0,0.30046433]
[1764570773926,0.47047925,86210.0,86209.0,0.30046433]
[1764570775566,0.47047925,86210.0,86209.0,0.30246433]
[1764570775771,0.00047925,86210.0,86209.0,0.30246433]
[1764570775980,0.00047925,86210.0,86209.0,0.07047]
[1764570776181,0.00047925,86210.0,86209.0,0.30246433]
[1764570776419,0.00047925,86210.0,86209.0,0.07147]
[1764570776748,0.00047925,86210.0,86209.0,0.07047]
[1764570776979,0.00047925,86210.0,86209.0,0.06847]
[1764570780250,0.23447089,86210.0,86209.0,0.06847]
[1764570780447,0.23447089,86210.0,86208.0,0.02023]
[1764570780640,0.23447089,86210.0,86201.0,0.04177]
[1764570780641,0.23201317,86202.0,86201.0,0.04177]
[1764570780929,0.23201317,86202.0,86195.0,0.00736]
[1764570780930,0.2320319,86196.0,86194.0,0.05875]
[1764570781089,0.2320319,86196.0,86194.0,0.01698]
[1764570781881,0.2320319,86196.0,86195.0,0.0267]
[1764570782090,0.2320319,86196.0,86194.0,0.01698]
[1764570782692,0.01160133,86197.0,86195.0,0.0267]
[1764570782893,0.01160133,86197.0,86196.0,0.0267]
[1764570783133,0.24363041,86197.0,86196.0,0.0267]
[1764570783447,0.23203202,86195.0,86194.0,0.01698]
[1764570783852,0.23203202,86195.0,86194.0,0.04368]
[1764570784148,0.23203202,86195.0,86194.0,0.08545]
[1764570784759,0.23303202,86195.0,86194.0,0.01698]
[1764570785375,0.23303202,86195.0,86182.0,0.2436681]
[1764570785376,0.23204009,86192.0,86180.0,0.01698]
[1764570785605,0.24324009,86192.0,86185.0,0.02023]
[1764570786226,0.01160173,86194.0,86185.0,0.02023]
[1764570786227,0.2320374,86193.0,86191.0,0.0685884]
[1764570786430,0.2320374,86193.0,86191.0,0.0418884]
[1764570786599,0.23201513,86202.0,86193.0,0.01160187]
[1764570786600,0.01160106,86199.0,86193.0,0.01160187]
[1764570786799,0.33460079,86201.0,86197.0,0.02023]
[1764570786800,0.01160079,86201.0,86197.0,0.02023]
[1764570787001,0.01160079,86201.0,86200.0,0.0267]
[1764570787266,0.01160079,86201.0,86197.0,0.02023]
[1764570787267,0.24361948,86200.0,86197.0,0.02023]
[1764570787469,0.23202341,86199.0,86197.0,0.062]
[1764570787816,0.23202341,86199.0,86198.0,0.0267]
[1764570788124,0.23204009,86192.0,86191.0,0.0001184]
[1764570788341,0.23204009,86192.0,86191.0,0.0203484]
[1764570788538,0.23204009,86192.0,86191.0,0.0470484]
[1764570788767,0.23204009,86192.0,86191.0,0.0203484]
[1764570790050,0.23204009,86192.0,86191.0,0.0001184]
[1764570790434,0.55504009,86192.0,86191.0,0.0001184]
[1764570791426,0.55704009,86192.0,86191.0,0.0001184]
[1764570792080,0.325,86192.0,86191.0,0.0685884]
[1764570792765,0.325,86192.0,86191.0,0.0888184]
[1764570793184,0.323,86192.0,86191.0,0.0888184]
[1764570794863,0.323,86192.0,86191.0,0.0470484]
[1764570795067,0.323,86192.0,86191.0,0.0203484]
[1764570796166,0.323,86192.0,86191.0,0.0888184]
[1764570796342,0.324,86192.0,86191.0,0.0470484]
[1764570796547,0.323,86192.0,86191.0,0.0203484]
[1764570796723,0.325,86192.0,86191.0,0.0203484]
[1764570797139,0.323,86192.0,86191.0,0.0203484]
[1764570797335,0.324,86192.0,86191.0,0.0203484]
[1764570800731,0.001,86192.0,86191.0,0.0203484]
[1764570801520,0.001,86192.0,86191.0,0.09342324]
[1764570801936,0.001,86192.0,86191.0,0.11662751]
[1764570802763,0.01160119,86198.0,86193.0,0.01160187]
[1764570802968,0.08237514,86197.0,86192.0,0.03902]
[1764570803276,0.01160146,86196.0,86193.0,0.03902]
[1764570803802,0.01160146,86196.0,86195.0,0.02582]
[1764570803932,0.01160133,86197.0,86195.0,0.02582]
[1764570804126,0.01160133,86197.0,86196.0,0.06484]
[1764570805335,0.00025562,86203.0,86197.0,0.01160133]
[1764570805538,0.00025562,86203.0,86202.0,0.25892317]
[1764570805739,0.00025562,86203.0,86202.0,0.29964317]
[1764570806921,0.00125562,86203.0,86202.0,0.29964317]
[1764570809588,0.01159662,86232.0,86226.0,0.01159743]
[1764570809808,0.01159662,86232.0,86231.0,0.04583]
[1764570809809,0.24353148,86232.0,86231.0,0.04583]
[1764570809937,0.01159662,86232.0,86231.0,0.04583]
[1764570810141,0.01159662,86232.0,86231.0,0.08655]
[1764570810338,0.0125229,86232.0,86231.0,0.08655]
[1764570810738,0.0125229,86232.0,86231.0,0.0866684]
[1764570812023,0.00092628,86232.0,86231.0,0.0866684]
[1764570812179,0.00092628,86232.0,86231.0,0.12274143]
[1764570812789,0.00092628,86232.0,86231.0,0.0866684]
[1764570815596,0.23285874,86232.0,86231.0,0.0190384]
[1764570816574,2.57978874,86232.0,86231.0,0.0001184]
[1764570816863,2.64231173,86232.0,86231.0,0.0001184]
[1764570817634,2.66624173,86232.0,86231.0,0.0001184]
[1764570819005,2.66724173,86232.0,86231.0,0.0001184]
[1764570819205,2.67024173,86232.0,86231.0,0.0001184]
[1764570819823,2.68803145,86232.0,86231.0,0.0001184]
[1764570820274,2.69103145,86232.0,86231.0,0.0001184]
[1764570820491,2.66983909,86232.0,86231.0,0.0001184]
[1764570820977,2.67083909,86232.0,86231.0,0.0001184]
[1764570822980,0.67083909,86232.0,86231.0,0.0001184]
[1764570823146,2.67083909,86232.0,86231.0,0.0001184]
[1764570823945,0.2320051,86205.0,86204.0,0.0096984]
[1764570824122,0.2320051,86205.0,86199.0,0.02058]
[1764570824123,0.23201658,86201.0,86199.0,0.02058]
[1764570824312,0.23201658,86201.0,86199.0,0.02069846]
[1764570824667,0.23201658,86201.0,86200.0,0.02691]
[1764570825269,0.23201658,86201.0,86199.0,0.02469846]
[1764570825505,0.23201658,86201.0,86199.0,0.02169846]
[1764570825726,0.23201658,86201.0,86199.0,0.02069846]
[1764570825891,0.23201658,86201.0,86200.0,0.003]
[1764570826089,0.23201658,86201.0,86200.0,0.06863]
[1764570826626,0.23201658,86201.0,86200.0,0.02691]
[1764570827235,0.01160065,86202.0,86200.0,0.06974]
[1764570827441,0.01160065,86202.0,86201.0,0.04786]
[1764570827808,0.01160133,86197.0,86188.0,0.00736]
[1764570828142,0.01160146,86196.0,86192.0,0.011602]
[1764570828504,0.01160146,86196.0,86195.0,0.00811]
[1764570830053,0.01160146,86196.0,86195.0,0.00911]
[1764570830688,0.01160146,86196.0,86195.0,0.01311]
[1764570830903,0.08204146,86196.0,86195.0,0.005]
[1764570831104,2.46756445,86196.0,86195.0,0.005]
[1764570831287,2.28612777,86196.0,86195.0,0.005]
[1764570831434,2.32536923,86196.0,86195.0,0.005]
[1764570831853,2.32536923,86196.0,86195.0,0.004]
[1764570832057,2.32536923,86196.0,86188.0,0.00011849]
[1764570832058,0.01160213,86191.0,86188.0,0.00011849]
[1764570832760,0.23204548,86190.0,86188.0,0.00011849]
[1764570834567,0.23204548,86190.0,86188.0,0.00148865]
[1764570837284,0.24364729,86191.0,86188.0,0.00148865]
[1764570837508,0.23204817,86189.0,86188.0,0.00148865]
[1764570838377,0.23204817,86189.0,86188.0,0.07097865]
[1764570840844,0.23204817,86189.0,86188.0,0.00148865]
[1764570844177,0.23204817,86189.0,86188.0,0.07097865]
[1764570844757,0.2320375,86193.0,86188.0,0.07097865]
[1764570844758,0.011602,86192.0,86188.0,0.07097865]
[1764570844983,0.24364372,86192.0,86189.0,0.04283]
[1764570845184,0.0116016,86195.0,86191.0,0.02666]
[1764570845390,0.24363034,86197.0,86195.0,0.04598]
[1764570845606,0.24363034,86197.0,86196.0,0.06949]
[1764570851440,0.91490783,86206.0,86200.0,0.01160092]
[1764570851441,0.33460025,86205.0,86200.0,0.01160092]
[1764570851641,0.01160025,86205.0,86200.0,0.01160092]
[1764570851860,0.01160025,86205.0,86204.0,0.04598]
[1764570852292,0.01160025,86205.0,86204.0,0.01932]
[1764570852497,0.01160025,86205.0,86204.0,0.08881]
[1764570853839,0.002,86205.0,86204.0,0.08881]
[1764570854092,0.24360048,86207.0,86204.0,0.08881]
[1764570854291,0.01159998,86207.0,86205.0,0.04283]
[1764570854494,0.01159998,86207.0,86206.0,0.02666]
[1764570854997,0.01159998,86207.0,86206.0,0.06949]
[1764570855225,0.67199497,86209.0,86207.0,0.2319976]
[1764570855226,0.44,86209.0,86207.0,0.2319976]
[1764570855433,0.44,86209.0,86208.0,0.02666]
[1764570855666,0.44,86209.0,86208.0,0.06949]
[1764570857642,0.44,86209.0,86208.0,0.07149]
[1764570858268,0.44,86209.0,86208.0,0.06949]
[1764570858740,0.44,86209.0,86208.0,0.07149]
[1764570863116,0.00026816,86224.0,86221.0,0.0115981]
[1764570863321,0.00026816,86224.0,86223.0,0.04594]
[1764570863656,0.00026816,86224.0,86223.0,0.09318]
[1764570864247,0.00026816,86224.0,86223.0,0.09329849]
[1764570864670,0.00126816,86224.0,86223.0,0.09329849]
[1764570865950,0.00026816,86224.0,86223.0,0.09329849]
[1764570873755,0.00026816,86224.0,86223.0,0.01464849]
[1764570873756,0.23222214,86224.0,86223.0,0.01464849]
[1764570873958,0.23222214,86224.0,86223.0,0.00011849]
[1764570873959,0.30905214,86224.0,86223.0,0.00011849]
[1764570874361,0.26220214,86224.0,86223.0,0.00011849]
[1764570875413,0.23222214,86224.0,86223.0,0.00011849]
[1764570875624,0.00026816,86224.0,86223.0,0.00011849]
[1764570875988,0.00226816,86224.0,86223.0,0.00011849]
[1764570877278,0.04911816,86224.0,86223.0,0.00011849]
[1764570877421,0.07909816,86224.0,86223.0,0.00011849]
[1764570877626,0.03224816,86224.0,86223.0,0.00011849]
[1764570878038,0.00226816,86224.0,86223.0,0.00011849]
[1764570880293,0.51580107,86224.0,86223.0,0.00011849]
[1764570880473,0.35524816,86224.0,86223.0,0.00011849]
[1764570880677,0.32526816,86224.0,86223.0,0.00011849]
[1764570881904,0.32526816,86224.0,86223.0,0.03169849]
[1764570882202,0.32526816,86224.0,86223.0,0.07946849]
[1764570883189,0.32526816,86224.0,86223.0,0.03169849]
[1764570883356,0.32526816,86224.0,86223.0,0.00011849]
[1764570887767,0.32526816,86224.0,86223.0,0.03076849]
[1764570888288,0.32526816,86224.0,86223.0,0.00011849]
[1764570894981,0.32526816,86224.0,86223.0,0.07531849]
[1764570895548,2.32526816,86224.0,86223.0,0.07531849]
[1764570897337,2.32526816,86224.0,86223.0,0.00011849]
[1764570901287,2.35563816,86224.0,86223.0,0.00011849]
[1764570901509,2.40045816,86224.0,86223.0,0.00011849]
[1764570902708,2.43165016,86224.0,86223.0,0.00011849]
[1764570902914,2.40045816,86224.0,86223.0,0.00011849]
[1764570903137,2.43533735,86224.0,86223.0,0.00011849]
[1764570903351,2.4604128,86224.0,86223.0,0.00011849]
[1764570904198,2.4584128,86224.0,86223.0,0.00011849]
[1764570904639,2.57611571,86224.0,86223.0,0.00011849]
[1764570904910,2.61889394,86224.0,86223.0,0.00011849]
[1764570905106,2.58443571,86224.0,86223.0,0.00011849]
[1764570905535,0.58443571,86224.0,86223.0,0.00011849]
[1764570905912,2.4707328,86224.0,86223.0,0.00011849]
[1764570908660,2.47064948,86224.0,86223.0,0.00011849]
[1764570909231,2.53317247,86224.0,86223.0,0.00011849]
[1764570912269,2.5749138,86224.0,86223.0,0.00011849]
[1764570916334,2.53317247,86224.0,86223.0,0.00011849]
[1764570916544,2.64687538,86224.0,86223.0,0.00011849]
[1764570916737,2.68861671,86224.0,86223.0,0.00011849]
[1764570916952,2.64687538,86224.0,86223.0,0.00011849]
[1764570917873,2.64287538,86224.0,86223.0,0.00011849]
[1764570918012,2.64187538,86224.0,86223.0,0.00011849]
[1764570918210,2.64887538,86224.0,86223.0,0.00011849]
[1764570919443,2.64887538,86224.0,86223.0,1e-08]
[1764570921163,0.64887538,86224.0,86223.0,1e-08]
[1764570921484,0.23205625,86186.0,86185.0,0.01828017]
[1764570921825,0.23205625,86186.0,86185.0,0.01839867]
[1764570922155,0.23205625,86186.0,86185.0,0.04852867]